Cogmind - Beta 16.1 @@@ ROGUE MODE // 2026.04.05 @ 17:15:11 Player: KURIIRI Result: Destroyed by RN-OLI(R) with Subdweller Machine Gun Performance ------------- Evolutions (0) 0 Regions Visited (2) 400 Robots Destroyed (35) 175 Value Destroyed (719) 719 Prototype IDs (2) 40 Alien Tech Used (0) 0 Bonus (0) 0 TOTAL SCORE: 1334 Bonus ------- None Cogmind --------- Core Integrity 0/250 Matter 210/300 Energy 76/100 System Corruption 4% Temperature Cool (0) Movement Treading (160) Location -10/Subcaves Parts ------- > --- POWER (1) -------- (None) > --- PROPULSION (2) --- Light Treads Light Treads (fused) > --- UTILITY (2) ------ (None) > --- WEAPON (2) ------- Light Cannon > --- INVENTORY (5) ---- Light Treads Wheel Compact Wheel Large Matter Pod (0) Hammer Peak State ------------ > --- POWER ------------ Subdweller Power Source > --- PROPULSION ------- Light Treads Light Treads > --- UTILITY ---------- Large Storage Unit Light Armor Plating > --- WEAPON ----------- Subdweller Laser Beam Cannon > --- INVENTORY -------- Light Treads Light Treads Light Treads Wheel Wheel Compact Wheel Large Matter Pod EM Pulse Gun Light Cannon Hammer [Rating: 10] Favorites ----------- Power Ion Engine Engine Ion Engine Propulsion Light Treads Treads Light Treads Leg Aluminum Leg Utility Large Storage Unit Device Improved Terrain Scanner Storage Large Storage Unit Protection Light Armor Plating Weapon Light Assault Rifle Energy Gun EM Pulse Gun Energy Cannon Beam Cannon Ballistic Gun Light Assault Rifle Ballistic Cannon Light Cannon Impact Weapon Hammer Build | -11 -10 -10 ------- Run | Yrd Mat Sub Slots Evolved . | . . . Power . | . . . Propulsion . | . . . Utility . | . . . Weapon . | . . . Parts Attached 21 | 3 11 7 Power 3 | . 2 1 Engine 3 | . 2 1 Core . | . . . Reactor . | . . . Propulsion 5 | 2 2 1 Treads 5 | 2 2 1 Leg . | . . . Wheel . | . . . Hover . | . . . Flight . | . . . Utility 6 | 1 3 2 Device 2 | 1 . 1 Storage 2 | . 2 . Processor . | . . . Hackware . | . . . Protection 2 | . 1 1 Artifact . | . . . Weapon 7 | . 4 3 Energy Gun 2 | . 1 1 Energy Cannon 1 | . 1 . Ballistic Gun 2 | . 2 . Ballistic Cannon 1 | . . 1 Launcher . | . . . Special Weapon . | . . . Impact Weapon 1 | . . 1 Slashing Weapon . | . . . Piercing Weapon . | . . . Special Melee Weapon . | . . . Unidentified Prototypes . | . . . Parts Lost 6 | . 2 4 Power 2 | . 1 1 Propulsion . | . . . Utility 2 | . 1 1 Weapon 2 | . . 2 Highest Loss Streak 2 | . 1 2 To Critical Strikes . | . . . Average Backups 7 | 6 7 8 Power . | 1 . . Propulsion 4 | 4 4 4 Utility . | . . . Weapon 1 | 1 1 2 Tool/Special . | . . . Unused Backups 6 | . 2 4 Power . | . . . Propulsion 3 | . . 3 Utility 2 | . 1 1 Weapon 1 | . 1 . Tool/Special . | . . . Average Slot Usage (%) 93 | . 94 91 Engine 13 | . 13 13 Treads 27 | . 26 28 Device 4 | . 6 . Storage 12 | . 14 8 Protection 7 | . 4 13 Energy Gun 1 | . 1 1 Energy Cannon 11 | . 10 14 Ballistic Gun 12 | . 15 4 Ballistic Cannon 1 | . . 4 Peak Build Rating 10 | 9 9 10 Average Rating 7 | 7 7 8 On Entrance 7 | 6 9 8 Avg Prop Armor Cover (%) . | . . . Naked Turns . | . . . Heaviest Build 35 | 11 32 35 Greatest Support 40 | 40 40 40 Greatest Overweight (x) 8 | . 8 . Average Overweight (x) . | . . . Largest Inventory Capacity 15 | 8 15 15 Average Capacity 13 | 8 14 10 Most Carried 11 | 6 10 11 Average Carried 7 | 5 7 8 Final Capacity 15 | 8 15 5 Final Carried 10 | 4 10 5 Class Distribution -------------------- 98% | Mutant Dominant Class ---------------- Mutant | -10/Materials Mutant | -10/Subcaves Resources | -11 -10 -10 ----------- Run | Yrd Mat Sub Matter Collected 773 | 209 455 109 Remotely . | . . . Salvage Created 1133 | 88 844 201 Parts 74 | 5 55 14 Haulers Intercepted 1 | . 1 . Recyclers Shooed 1 | . 1 . Parts Field Recycled . | . . . Retrieved Matter . | . . . Parts Self-Destructed 7 | . . 7 Prevented . | . . . Parts Restored . | . . . Kills | -11 -10 -10 ------- Run | Yrd Mat Sub Combat Hostiles Destroyed 22 | . 18 4 Guns 10 | . 8 2 Cannons 11 | . 10 1 Classes Destroyed 11 | 2 7 2 Builder 2 | . 2 . Tunneler 1 | 1 . . Hauler 1 | . 1 . Recycler 3 | 1 2 . Mechanic 1 | . 1 . Operator 2 | . 2 . Watcher 3 | . 3 . Swarmer 9 | . 9 . Grunt 9 | . 9 . Artisan 1 | . . 1 Subdweller 4 | . . 4 Best Kill Streak 5 | 2 5 2 Combat Bots Only 5 | . 5 2 Max Kills in Single Turn 1 | 1 1 1 Gunslinging . | . . . Exploded . | . . . Melee . | . . . Uniques/NPCs Destroyed . | . . . Combat | -11 -10 -10 -------- Run | Yrd Mat Sub Hostile Shots Fired 147 | . 95 52 Missed 41 | . 32 9 Hits 106 | . 63 43 Projectile 106 | . 63 43 Critical Strikes 1 | . . 1 Damage Taken 1508 | . 605 903 Core 255 | . 95 160 Absorbed by Shields . | . . . Regen/Repaired (Parts) 83 | . 83 . Core Remaining (%) 100 | 100 . . Volleys Fired 137 | 3 89 45 Largest 2 | 2 2 2 Hottest 120 | 40 80 120 Shots Fired 221 | 6 139 76 Gun 98 | 6 79 13 Cannon 123 | . 60 63 Launcher . | . . . Special . | . . . Kinetic 100 | 6 70 24 Thermal 112 | . 60 52 Explosive . | . . . Electromagnetic 9 | . 9 . Robot Hit Streak 29 | 6 14 29 Robot Miss Streak 4 | . 4 2 Penetration Max . | . . . Secondary Targets 2 | . 2 . Max Gunslinging Chain 1 | . 1 . Shots Hit Robots 157 | 6 86 65 Core Hits 49 | 4 37 8 Critical Kills 1 | . . 1 Critical Parts Destroyed . | . . . Critical Strikes 1 | . . 1 Meltdown 1 | . . 1 Melee Attacks 4 | . . 4 Impact 4 | . . 4 Slashing . | . . . Piercing . | . . . Sneak Attacks . | . . . Combat Hostiles . | . . . Follow-up Attacks . | . . . Damage Inflicted 1582 | 51 1194 337 Guns 561 | 51 381 129 Cannons 999 | . 791 208 Explosions . | . . . Melee . | . . . Ramming 22 | . 22 . Kinetic 354 | 51 278 25 Thermal 1103 | . 791 312 Explosive . | . . . Electromagnetic 103 | . 103 . Impact . | . . . Slashing . | . . . Piercing . | . . . Highest Corruption 4 | . 4 4 Average Corruption 3 | . 3 4 Corruption Purged . | . . . Corruption Blocked . | . . . Effects 23 | . 9 14 Message Errors 3 | . 2 1 Matter Fused 3 | . . 3 Heat Flow Errors 4 | . 1 3 Energy Discharges 3 | . . 3 Parts Rejected 1 | . . 1 Parts Fused 1 | . 1 . Data Loss (minor) 4 | . 2 2 Data Loss (major) 1 | . . 1 Misfires 2 | . 2 . Weapon Failures 1 | . 1 . Overload Shots . | . . . Overflow Damage . | . . . Projectiles . | . . . Explosions . | . . . Melee . | . . . Knockbacks . | . . . Impact . | . . . Kinetic . | . . . Secondary . | . . . Self-Inflicted Damage . | . . . Shots . | . . . Rammed 4 | . 4 . Targets Rammed 6 | . 6 . Kicked . | . . . Crushed 2 | . 2 . Highest Temperature 296 | . 296 244 Average Temperature 67 | . 72 44 Received Heat Transfer 222 | . 150 72 Effects 4 | . 4 . Energy Bleed 1 | . 1 . Interference 3 | . 3 . Siege Activations . | . . . Martial Activations . | . . . Shielding Activations . | . . . Robots Disrupted . | . . . Combat Hostiles . | . . . Robots Corrupted . | . . . Combat Hostiles . | . . . Parts Fried 1 | . 1 . Impact Corruptions . | . . . Robots Melted 1 | . . 1 Combat Hostiles 1 | . . 1 Parts Melted 4 | . 1 3 Heat Transferred 2234 | . 1665 569 Parts Sabotaged . | . . . Parts Stolen . | . . . Parts Stripped . | . . . Power Chain Reactions . | . . . Alert | -11 -10 -10 ------- Run | Yrd Mat Sub Maximum Alert Level 1 | . 1 . Low Security (%) 95 | 100 95 . Level 1 4 | . 4 . Level 2 . | . . . Level 3 . | . . . Level 4 . | . . . Level 5 . | . . . High Security . | . . . Max Security . | . . . Peak Influence 215 | 10 215 . Initial . | . . . Average 113 | 5 116 . Influence Increases 692 | 10 682 . Destroy 0b10 Robot/C 360 | . 360 . Destroy 0b10 Robot/NC 65 | 10 55 . Destroy Leader 98 | . 98 . Successful Hack 34 | . 34 . Select Force Hacks 60 | . 60 . Disable Machine 30 | . 30 . Lose Combat Pursuer 45 | . 45 . Influence Decreases 692 | 10 513 169 Entered New Map 82 | . . 82 Time Decay 599 | 10 502 87 Lost Part 11 | . 11 . Squads Dispatched 5 | . 5 . Investigation 3 | . 3 . Extermination . | . . . Reinforcement 2 | . 2 . Assault . | . . . Garrison . | . . . Intercept . | . . . Searches Triggered . | . . . Construction Impeded . | . . . Haulers Reinforced . | . . . Active Scanning Responses . | . . . Cargo Convoy Interrupts . | . . . Stealth | -11 -10 -10 --------- Run | Yrd Mat Sub Distress Signals 1 | . 1 . Communications Jammed . | . . . Distress Signals . | . . . Times Spotted 33 | . 27 6 Peak Tracking Total 4 | . 4 2 Tactical Retreats 2 | . 2 . Traps | -11 -10 -10 ------- Run | Yrd Mat Sub Traps Triggered 10 | . 9 1 Indirectly . | . . . Trap Hack Attempts . | . . . Triggered . | . . . Disarmed . | . . . Reprogrammed . | . . . Reused . | . . . Traps Extracted . | . . . Installed . | . . . Triggered . | . . . Machines | -11 -10 -10 ---------- Run | Yrd Mat Sub Machines Disabled 2 | . 2 . Max in Single Turn 1 | . 1 . Machines Repaired . | . . . Machines Dismantled . | . . . Machines Sabotaged . | . . . Overloaded Fab Kills . | . . . Hacking | -11 -10 -10 --------- Run | Yrd Mat Sub Machines Accessed 9 | . 9 . Terminals 6 | . 6 . Fabricators . | . . . Repair Stations 1 | . 1 . Recycling Units 2 | . 2 . Scanalyzers . | . . . Garrison Access . | . . . Total Hacks 29 | . 29 . Successful 19 | . 19 . Failed 10 | . 10 . Catastrophic 2 | . 2 . Database Lockouts . | . . . Manual 21 | . 21 . Terminals 22 | . 22 . Fabricators . | . . . Repair Stations 5 | . 5 . Recycling Units 2 | . 2 . Scanalyzers . | . . . Garrison Access . | . . . Terminal Hacks 6 | . 6 . Robot Analysis 2 | . 2 . Prototype ID Bank 1 | . 1 . Terminal Index 1 | . 1 . Locate Traps 1 | . 1 . Zone Layout 1 | . 1 . Fabricator Hacks . | . . . Repair Station Hacks 3 | . 3 . Scan Component 2 | . 2 . Repair 1 | . 1 . Recycling Unit Hacks . | . . . Scanalyzer . | . . . Garrison Access Hacks . | . . . Unauthorized Hacks 10 | . 10 . Terminals 8 | . 8 . Botnet 2 | . 2 . Operators 1 | . 1 . Skim 5 | . 5 . Fabricators . | . . . Repair Stations . | . . . Recycling Units 2 | . 2 . Tunnel 2 | . 2 . Scanalyzers . | . . . Garrison Access . | . . . Data Cores Recovered . | . . . Used . | . . . Hacking Detections 6 | . 6 . Full Trace Events 1 | . 1 . Feedback Events . | . . . Feedback Blocked . | . . . Robot Schematics Acquired . | . . . Robots Built . | . . . Authchips . | . . . Time . | . . . Total Robot Build Rating . | . . . Part Schematics Acquired . | . . . Parts Built . | . . . Authchips . | . . . Time . | . . . Total Part Build Rating . | . . . Part Studies Acquired . | . . . Parts Repaired 1 | . 1 . Time 26 | . 26 . Parts Recycled . | . . . Recycled Matter . | . . . Retrieved Matter . | . . . Retrieved Components . | . . . Parts Scanalyzed . | . . . Part Schematics Acquired . | . . . Parts Damaged . | . . . Bothacking | -11 -10 -10 ------------ Run | Yrd Mat Sub Used RIF Installer . | . . . Robots Hacked . | . . . Non-combat . | . . . Combat . | . . . Robot Hacks Applied . | . . . Relay Couplers Released . | . . . Fabnet Peak Effective % . | . . . Robots Rewired . | . . . Allies Hacked . | . . . Hacks Repelled . | . . . Allies | -11 -10 -10 -------- Run | Yrd Mat Sub Total Allies . | . . . Largest Group . | . . . Highest-Rated Group . | . . . Highest-Rated Ally . | . . . Total Orders . | . . . Ally Attacks . | . . . Total Damage . | . . . Kills . | . . . Allies Corrupted . | . . . Allies Melted . | . . . Intel | -11 -10 -10 ------- Run | Yrd Mat Sub Active Infowar (turns) 424 | 15 409 . Terrain 424 | 15 409 . Robot Analysis Total 2 | . 2 . Derelict Logs Recovered 1 | . . 1 Drone Launches . | . . . Drone Recoveries . | . . . Exploration | -11 -10 -10 ------------- Run | Yrd Mat Sub Turns Passed 1965 | 28 1350 587 Spaces Moved 863 | 14 609 240 Core 6 | . 6 . Treads 844 | 1 603 240 Legs 13 | 13 . . Wheels . | . . . Hover . | . . . Flight . | . . . Fastest Speed 120 | 120 160 160 Average Speed 161 | 122 163 160 Slowest Speed 450 | 160 450 160 Overloaded Moves . | . . . Propulsion Burnouts . | . . . Robots Hopped . | . . . Potential Cave-ins . | . . . Cave-ins Triggered . | . . . Exploration Rate (%) 40 | 2 98 20 Regions Visited 2 Branch Regions 1 Pre-discovered Areas 2 | . 2 . Known Exits Taken 1 | . 1 . Unknown Exits Taken 1 | 1 . . Scrap Searched . | . . . Spaces Dug . | . . . Terrain Destroyed . | . . . Melee . | . . . Projectile . | . . . AOE . | . . . Terrain Rammed . | . . . Walls Destroyed . | . . . Machines Disabled . | . . . Actions | -11 -10 -10 --------- Run | Yrd Mat Sub Total 1210 | 21 830 359 Wait 144 | . 93 51 Move 861 | 13 608 240 Hop . | . . . Pick Up 10 | . 8 2 Fast Attach 18 | 1 14 3 Attach 6 | 2 2 2 Detach 1 | . 1 . Swap 12 | . 6 6 Drop 11 | 2 3 6 Fire 137 | 3 89 45 Melee 4 | . . 4 Ram . | . . . Kick . | . . . Crush 6 | . 6 . Escape Stasis . | . . . Rewire . | . . . Trap . | . . . Miscellaneous . | . . . Route ------- -11/Scrapyard -10/Materials (discovered 5 exits: [*Mat x3] / [*Min] / *Sub) -10/Subcaves (discovered 3 exits: Mat x2 / Rec) History --------- Turn | Location | Event 9 | -11/Scrapyard | Discovered new exit (range 3) 29 | -11/Scrapyard | Entered Materials 225 | -10/Materials | Discovered new exit (range 15) 317 | -10/Materials | Build established: Mutant 718 | -10/Materials | Repaired Beam Cannon 833 | -10/Materials | Discovered new exit (range 16) 892 | -10/Materials | Discovered new exit (range 16) 1111 | -10/Materials | Loaded intel: 14 trap records 1151 | -10/Materials | Discovered new exit (range 11) 1169 | -10/Materials | Learned location of 2 exits from Mines 1255 | -10/Materials | Learned Recycling recycling unit intel 1298 | -10/Materials | Learned location of 1 exit from Storage 1325 | -10/Materials | Identified exit to Subcaves 1325 | -10/Materials | Learned location of 1 exit from Materials 1360 | -10/Materials | Learned location of 2 exits from Subcaves 1379 | -10/Materials | Entered Subcaves 1380 | -10/Subcaves | Approached by a straggling Scientist 1380 | -10/Subcaves | Identified exit to Materials 1381 | -10/Subcaves | Identified exit to Recycling 1532 | -10/Subcaves | Core integrity fell below 50% 1719 | -10/Subcaves | Shifting Twisted Machinery released Scrap Shield 1724 | -10/Subcaves | Shifting Twisted Machinery released Flamer 1804 | -10/Subcaves | Shifting Twisted Machinery released Sub. Monowheel 1955 | -10/Subcaves | Core integrity fell below 20% 1966 | -10/Subcaves | Destroyed by RN-OLI(R) with Subdweller Machine Gun Last Messages --------------- 01862_ Sub. Power Source shoots sparks and powers down. 01872_ RN-OLI(R): "ECOKILL!" 01885_ 06-XFU(O) puts together Scrap Shield. 01886_ 06-XFU(O) collects matter. 01891_ System corrupted: Energy discharge (-22). 01907_ 06-XFU(O) collects matter. 01908_ System corrupted: Matter fused (-7). 01910_ 06-XFU(O) collects matter. 01925_ 06-XFU(O) puts together Sub. Laser. 01926_ Critical hit (Destroy). 01938_ Scrap Shield destroyed. VC-OC0(c): "I think it's somewhere northwest of here" 01940_ System corrupted: Broken Sub. Power Source rejected. 01956_ 06-XFU(O) collects matter. 01960_ System corrupted: Matter fused (-7). 01962_ Beam Cannon destroyed. 01965_ 06-XFU(O) puts together Sub. Beam Cannon. Map ----- +----------------------------------------------------+ | ?????????????????????????????????????????????????? | | ?????????????????????????????????????????????????? | | ????????????????????????????##???????????????????? | | ???????????????????????##### ????????????????????? | | ???????????????????????# # ?????????????????????? | | ??????????????????###### ?????????????????????? | | ?????????????????## ??????????????????????? | | ?????????####????# ???????????????????????? | | ????????##" #????? #???????????????????????? | | ????##### #?????# ## ##??????????????????????? | | ????# #?????# ## #??????????????????????? | | ????# #####?# ## #??????????????????????? | | ##??# ###" ### !##?????????????????????? | | #### ##"" ## ## # ##?###????????????????? | | """"" "" ## = #### ### #????????????????? | | """" # % #?## ##???????????????? | | ##"" ## """" """= ##??## #???????????????? | | ###" ###""#""#"" ##???##### #####????????????? | | ### &"##?#""######### """##?# # ##????